bitfinex-derivatives/quotes_BTCF0:USTF0_20250812
["timestamp","ask_amount","ask_price","bid_price","bid_amount"]
[1754991342305,0.2083148,118690.0,118680.0,1.34119705]
[1754991344803,0.004,118690.0,118680.0,1.74648472]
[1754991345497,0.004,118690.0,118680.0,1.34119705]
[1754991345699,0.004,118690.0,118680.0,1.74648472]
[1754991348311,0.0847271,118700.0,118680.0,2.76535309]
[1754991348515,0.01488,118720.0,118710.0,0.0842406]
[1754991348722,0.2042935,118720.0,118710.0,1.37616827]
[1754991348907,0.2042935,118720.0,118710.0,0.2044806]
[1754991349107,0.60958117,118720.0,118710.0,0.2044806]
[1754991349317,1.61295855,118720.0,118710.0,0.0842406]
[1754991349514,1.61295855,118720.0,118700.0,0.6977756]
[1754991349515,0.0842406,118710.0,118700.0,0.2527295]
[1754991349708,0.98970805,118710.0,118700.0,0.0842415]
[1754991350316,0.99808476,118710.0,118700.0,0.0842415]
[1754991350615,0.99808476,118710.0,118700.0,0.1577515]
[1754991351116,0.99808476,118710.0,118700.0,0.1587515]
[1754991352318,0.99808476,118710.0,118700.0,0.1009915]
[1754991352512,0.99808476,118710.0,118700.0,0.0852415]
[1754991352711,0.99808476,118710.0,118700.0,0.0862415]
[1754991353916,1.13798476,118710.0,118700.0,0.0862415]
[1754991354215,0.99808476,118710.0,118700.0,0.0862415]
[1754991355605,0.99808476,118710.0,118700.0,0.0862476]
[1754991355812,0.0842547,118690.0,118680.0,0.2527778]
[1754991356121,1.98992687,118690.0,118680.0,0.0842618]
[1754991356317,2.07418867,118690.0,118680.0,0.0842618]
[1754991357318,2.07518867,118690.0,118680.0,0.0882618]
[1754991357520,2.07518867,118690.0,118680.0,0.1930218]
[1754991357521,1.0563156,118690.0,118680.0,0.1930218]
[1754991357719,0.2057347,118690.0,118680.0,0.2070718]
[1754991357919,0.61102237,118690.0,118680.0,0.2070718]
[1754991358213,0.61102237,118690.0,118680.0,0.2090718]
[1754991358621,0.12148,118690.0,118680.0,0.2090718]
[1754991359521,0.01051,118690.0,118680.0,0.61435947]
[1754991359818,0.12148,118690.0,118680.0,0.2090718]
[1754991361925,0.2057344,118690.0,118680.0,0.2090718]
[1754991362222,0.12148,118690.0,118680.0,0.2090718]
[1754991362622,0.12148,118690.0,118680.0,0.61435947]
[1754991363621,0.12148,118690.0,118680.0,0.2090718]
[1754991364719,0.2057348,118690.0,118680.0,0.2090718]
[1754991365124,0.61102247,118690.0,118680.0,0.2090718]
[1754991365728,0.61102247,118690.0,118680.0,0.1372618]
[1754991365929,0.61102247,118690.0,118680.0,0.2090718]
[1754991366527,0.2057348,118690.0,118680.0,0.1060118]
[1754991366728,0.61102247,118690.0,118680.0,0.1060118]
[1754991366928,0.61102247,118690.0,118680.0,0.2090718]
[1754991378525,0.97182247,118690.0,118680.0,0.2090718]
[1754991378730,0.61102247,118690.0,118680.0,0.2090718]
[1754991386034,0.61102247,118690.0,118680.0,0.1950218]
[1754991386739,0.61102247,118690.0,118680.0,0.2092618]
[1754991390840,0.2057348,118690.0,118680.0,0.2092618]
[1754991393137,0.61102247,118690.0,118680.0,0.0902618]
[1754991393435,0.97182247,118690.0,118680.0,0.0902618]
[1754991394133,0.61102247,118690.0,118680.0,0.0902618]
[1754991395236,0.97182247,118690.0,118680.0,0.0902618]
[1754991403742,0.97182247,118690.0,118680.0,0.1874118]
[1754991407747,0.97182247,118690.0,118680.0,0.1280118]
[1754991407946,0.97182247,118690.0,118680.0,0.1066018]
[1754991408856,0.97182247,118690.0,118680.0,0.0902618]
[1754991418255,0.97182247,118690.0,118680.0,0.1142218]
[1754991418454,0.97182247,118690.0,118680.0,0.1491118]
[1754991418750,0.87034131,118690.0,118680.0,0.1491118]
[1754991419047,0.084269,118670.0,118660.0,0.1685493]
[1754991419253,0.0842833,118650.0,118640.0,1.02519335]
[1754991419457,2.00664981,118650.0,118640.0,1.07555901]
[1754991420362,1.7028433,118650.0,118640.0,1.37936552]
[1754991420562,1.7038433,118650.0,118640.0,1.38836552]
[1754991421253,2.00764981,118650.0,118640.0,1.08455901]
[1754991422160,2.00664981,118650.0,118640.0,1.07555901]
[1754991422362,2.00764981,118650.0,118640.0,1.08055901]
[1754991422660,1.77190896,118650.0,118640.0,1.18202346]
[1754991422960,1.7038433,118650.0,118640.0,1.18202346]
[1754991423961,1.7038433,118650.0,118640.0,1.19030167]
[1754991424962,1.61956,118650.0,118640.0,1.19030167]
[1754991425763,1.7038433,118650.0,118640.0,1.19030167]
[1754991425962,1.7038433,118650.0,118640.0,1.95878167]
[1754991426164,1.61956,118650.0,118640.0,1.95878167]
[1754991426967,1.501,118650.0,118640.0,1.55351071]
[1754991427263,1.57182,118650.0,118640.0,1.95878167]
[1754991432961,1.57182,118650.0,118640.0,1.55351071]
[1754991433357,1.57182,118650.0,118640.0,1.95878167]
[1754991436666,1.57182,118650.0,118640.0,1.96054167]
[1754991437071,1.57182,118650.0,118640.0,1.55527071]
[1754991437260,1.57182,118650.0,118640.0,1.96054167]
[1754991442276,1.57182,118650.0,118640.0,1.55527071]
[1754991442669,1.57182,118650.0,118640.0,1.96054167]
[1754991444780,1.96004553,118650.0,118640.0,2.16315497]
[1754991446683,1.96004553,118650.0,118640.0,1.55527071]
[1754991446977,1.96004553,118650.0,118640.0,2.16315497]
[1754991448679,1.6561034,118650.0,118640.0,2.16315497]
[1754991448881,1.96004553,118650.0,118640.0,2.16315497]
[1754991449482,1.6561034,118650.0,118640.0,2.16315497]
[1754991449675,1.96004553,118650.0,118640.0,2.16315497]
[1754991451182,1.57182,118650.0,118640.0,2.16315497]
[1754991451383,1.57182,118650.0,118640.0,1.55527071]
[1754991451684,1.57182,118650.0,118640.0,2.16315497]
[1754991451981,0.07182,118650.0,118640.0,2.16315497]
[1754991452182,0.11841,118650.0,118640.0,2.16315497]
[1754991455581,0.11841,118650.0,118640.0,1.55527071]
[1754991455892,0.11841,118650.0,118640.0,2.16315497]
[1754991460988,0.11841,118650.0,118640.0,1.55527071]
[1754991461292,0.11841,118650.0,118640.0,2.16315497]
[1754991462289,0.11841,118650.0,118640.0,1.55527071]
[1754991462684,0.11841,118650.0,118640.0,2.16315497]
[1754991464089,0.10407,118650.0,118640.0,2.16315497]
[1754991467388,0.10407,118650.0,118640.0,1.85921284]
[1754991467592,0.40801213,118650.0,118640.0,1.55527071]
[1754991467796,0.42287213,118650.0,118640.0,2.16315497]
[1754991468095,0.11893,118650.0,118640.0,2.16315497]
[1754991469191,0.11893,118650.0,118640.0,1.55527071]
[1754991469392,0.11893,118650.0,118640.0,2.16315497]
[1754991469789,0.11893,118650.0,118640.0,1.55527071]
[1754991470090,0.42287213,118650.0,118640.0,1.55527071]
[1754991470298,0.42287213,118650.0,118640.0,2.16315497]
[1754991471594,0.11893,118650.0,118640.0,2.16315497]
[1754991473000,0.11893,118650.0,118640.0,1.55527071]
[1754991473388,0.11893,118650.0,118640.0,2.16315497]
[1754991475200,0.42287213,118650.0,118640.0,2.16315497]
[1754991477596,0.42287213,118650.0,118640.0,1.55527071]
[1754991477797,0.42287213,118650.0,118640.0,2.16315497]
[1754991478300,0.42287213,118650.0,118640.0,1.55527071]
[1754991478498,0.42287213,118650.0,118640.0,2.16315497]
[1754991479698,0.11893,118650.0,118640.0,2.16315497]
[1754991479998,0.42287213,118650.0,118640.0,2.16315497]
[1754991480499,0.11893,118650.0,118640.0,2.16315497]
[1754991480701,0.42287213,118650.0,118640.0,2.16315497]
[1754991481301,0.11893,118650.0,118640.0,2.16315497]
[1754991481501,0.42287213,118650.0,118640.0,2.16315497]
[1754991481701,0.50715523,118650.0,118640.0,2.16315497]
[1754991482402,0.42287213,118650.0,118640.0,2.16315497]
[1754991483297,0.50715523,118650.0,118640.0,2.16315497]
[1754991484005,0.50715523,118650.0,118640.0,1.55527071]
[1754991484202,0.50715523,118650.0,118640.0,2.16315497]
[1754991484704,0.42287213,118650.0,118640.0,2.16315497]
[1754991485003,0.11893,118650.0,118640.0,2.16315497]
[1754991485204,0.04759,118650.0,118640.0,2.16315497]
[1754991486097,0.04759,118650.0,118640.0,1.55527071]
[1754991486297,0.04759,118650.0,118640.0,2.16315497]
[1754991489008,0.01064,118650.0,118640.0,2.16315497]
[1754991490208,0.001,118650.0,118640.0,2.16315497]
[1754991491813,0.001,118650.0,118640.0,2.16320492]
[1754991496126,0.001,118650.0,118640.0,1.55532066]
[1754991496326,0.001,118650.0,118640.0,2.16320492]
[1754991499122,0.26163951,118680.0,118670.0,0.0842689]
[1754991499324,0.23645951,118680.0,118670.0,1.27322103]
[1754991499529,0.61464164,118680.0,118670.0,1.27322103]
[1754991499721,0.61462265,118680.0,118670.0,1.27322103]
[1754991500428,0.61762265,118680.0,118670.0,1.27422103]
[1754991501326,0.02185182,118680.0,118670.0,1.27422103]
[1754991501528,0.19007362,118680.0,118670.0,1.27422103]
[1754991501729,0.49401575,118680.0,118670.0,1.27422103]
[1754991502131,0.51051575,118680.0,118670.0,0.9702789]
[1754991502316,0.41977575,118680.0,118670.0,1.27422103]
[1754991502522,0.33551395,118680.0,118670.0,1.27422103]
[1754991502722,0.41977575,118680.0,118670.0,1.27422103]
[1754991503227,0.0969818,118680.0,118670.0,1.27422103]
[1754991503430,0.24407508,118680.0,118670.0,1.27422103]
[1754991503726,0.17473508,118680.0,118670.0,1.27422103]
[1754991504121,0.17473508,118680.0,118670.0,0.9702789]
[1754991504326,0.60197721,118680.0,118670.0,1.27422103]
[1754991508526,0.29803508,118680.0,118670.0,1.27422103]
[1754991508729,0.60197721,118680.0,118670.0,1.27422103]
[1754991509835,0.58302431,118680.0,118670.0,1.27422103]
[1754991511134,0.27908218,118680.0,118670.0,1.27422103]
[1754991511331,0.58302431,118680.0,118670.0,1.27422103]
[1754991514638,0.58302431,118680.0,118670.0,0.9702789]
[1754991514831,0.58302431,118680.0,118670.0,1.27422103]
[1754991515928,0.58302431,118680.0,118670.0,0.9702789]
[1754991516238,0.58302431,118680.0,118670.0,1.27422103]
[1754991518939,0.27908218,118680.0,118670.0,1.27422103]
[1754991519140,0.58302431,118680.0,118670.0,1.27422103]
[1754991521242,0.27908218,118680.0,118670.0,1.27422103]
[1754991521443,0.58302431,118680.0,118670.0,1.27422103]
[1754991525545,0.58302431,118680.0,118670.0,0.9702789]
[1754991525747,0.58302431,118680.0,118670.0,1.27422103]
[1754991527447,0.27908218,118680.0,118670.0,1.27422103]
[1754991527641,0.58302431,118680.0,118670.0,1.27422103]
[1754991534153,0.49876251,118680.0,118670.0,1.27422103]
[1754991534553,0.19482038,118680.0,118670.0,1.27422103]
[1754991534750,0.49876251,118680.0,118670.0,1.27422103]
[1754991535354,0.58302441,118680.0,118670.0,1.27422103]
[1754991536359,0.49876251,118680.0,118670.0,1.27422103]
[1754991538056,0.58302441,118680.0,118670.0,1.27422103]
[1754991538267,0.58302441,118680.0,118670.0,0.9702789]
[1754991538450,0.58302441,118680.0,118670.0,1.27422103]
[1754991540656,0.58302441,118680.0,118670.0,0.9702789]
[1754991540958,1.55170867,118680.0,118670.0,0.085269]
[1754991541254,1.55170867,118680.0,118670.0,0.001]
[1754991541555,1.55170867,118680.0,118670.0,0.085269]
[1754991542359,1.24776654,118680.0,118670.0,0.085269]
[1754991545357,1.24776654,118680.0,118670.0,0.159739]
[1754991545558,1.24776654,118680.0,118670.0,0.101729]
[1754991545860,1.23748654,118680.0,118670.0,0.101729]
[1754991546352,1.23748654,118680.0,118670.0,0.159739]
[1754991549361,1.22342654,118680.0,118670.0,0.159739]
[1754991551057,1.22342654,118680.0,118670.0,0.136689]
[1754991551265,1.38294228,118680.0,118670.0,0.159739]
[1754991551657,1.99082654,118680.0,118670.0,0.159739]
[1754991552667,1.99082654,118680.0,118670.0,0.123159]
[1754991552961,1.99082654,118680.0,118670.0,0.181169]
[1754991553364,1.94965654,118680.0,118670.0,0.141659]
[1754991554061,2.08955654,118680.0,118670.0,0.141659]
[1754991554263,2.11380654,118680.0,118670.0,0.181169]
[1754991556764,2.08955654,118680.0,118670.0,0.141659]
[1754991556961,2.11380654,118680.0,118670.0,0.181169]
[1754991561575,2.13272158,118680.0,118670.0,0.181169]
[1754991564381,1.52483732,118680.0,118670.0,0.181169]
[1754991564676,2.13272158,118680.0,118670.0,0.48511113]
[1754991564876,1.52483732,118680.0,118670.0,0.48511113]
[1754991565069,2.13272158,118680.0,118670.0,0.181169]
[1754991565470,2.11380654,118680.0,118670.0,0.181169]
[1754991565978,1.50592228,118680.0,118670.0,0.48511113]
[1754991566278,2.11380654,118680.0,118670.0,0.48511113]
[1754991566477,2.11380654,118680.0,118670.0,0.181169]
[1754991566673,2.11380654,118680.0,118670.0,0.48511113]
[1754991566873,2.11380654,118680.0,118670.0,0.181169]
[1754991567075,2.11380654,118680.0,118670.0,0.48511113]
[1754991567878,2.11380654,118680.0,118670.0,0.181169]
[1754991568081,2.11380654,118680.0,118670.0,0.48511113]
[1754991568481,1.50592228,118680.0,118670.0,0.181169]
[1754991568676,0.90256441,118680.0,118670.0,0.42771113]
[1754991568882,1.68516441,118680.0,118670.0,0.48530113]
[1754991569071,1.98910654,118680.0,118670.0,0.48530113]
[1754991569271,1.68516441,118680.0,118670.0,0.48530113]
[1754991569977,1.98910654,118680.0,118670.0,0.101729]
[1754991570182,1.98910654,118680.0,118670.0,0.40567113]
[1754991570482,1.98910654,118680.0,118670.0,0.101729]
[1754991571381,1.98910654,118680.0,118670.0,0.085269]
[1754991572483,1.98910654,118680.0,118670.0,0.0852689]
[1754991573686,1.98810654,118680.0,118670.0,0.0852689]
[1754991573986,2.12800654,118680.0,118670.0,0.0852689]
[1754991574574,2.12700654,118680.0,118670.0,0.0852689]
[1754991575387,2.12900654,118680.0,118670.0,0.0852689]
[1754991575977,2.12800654,118680.0,118670.0,0.0842689]
[1754991576181,2.13000654,118680.0,118670.0,0.0852689]
[1754991580890,1.52212228,118680.0,118670.0,0.0852689]
[1754991581391,2.13000654,118680.0,118670.0,0.0852689]
[1754991582488,2.13000654,118680.0,118670.0,0.1012089]
[1754991582697,1.36260654,118680.0,118670.0,0.1587989]
[1754991584097,1.22270654,118680.0,118670.0,0.1587989]
[1754991584493,0.61482228,118680.0,118670.0,0.1587989]
[1754991584686,1.22270654,118680.0,118670.0,0.1587989]
[1754991584886,1.22270654,118680.0,118670.0,0.1012089]
[1754991585795,0.61482228,118680.0,118670.0,0.1012089]
[1754991585992,1.22270654,118680.0,118670.0,0.1012089]
[1754991586194,1.22270654,118680.0,118670.0,0.0852689]
[1754991587298,0.61482228,118680.0,118670.0,0.0852689]
[1754991587498,1.22270654,118680.0,118670.0,0.0852689]
[1754991587997,0.61482228,118680.0,118670.0,0.0852689]
[1754991588197,1.22270654,118680.0,118670.0,0.1808389]
[1754991588399,0.61482228,118680.0,118670.0,0.1808389]
[1754991588599,1.22270654,118680.0,118670.0,0.1808389]
[1754991589298,0.61482228,118680.0,118670.0,0.48478103]
[1754991589595,1.22270654,118680.0,118670.0,0.48260103]
[1754991589897,1.22270654,118680.0,118670.0,0.1786589]
[1754991590103,0.55796441,118680.0,118670.0,0.42829103]
[1754991590399,1.66976038,118680.0,118670.0,0.78764316]
[1754991590899,1.66976038,118680.0,118670.0,0.48370103]
[1754991591598,0.16976038,118680.0,118670.0,1.14844316]
[1754991592195,0.16976038,118680.0,118670.0,0.84450103]
[1754991597689,0.16976038,118680.0,118670.0,0.5405589]
[1754991597891,0.16976038,118680.0,118670.0,0.84450103]
[1754991600503,0.25402228,118680.0,118670.0,0.5405589]
[1754991600799,0.86190654,118680.0,118670.0,0.4460689]
[1754991601001,1.22270654,118680.0,118670.0,0.0852689]
[1754991601598,0.86190654,118680.0,118670.0,0.0852689]
[1754991601799,1.22270654,118680.0,118670.0,0.0852689]
[1754991604099,1.22270654,118680.0,118670.0,0.001]
[1754991604997,1.22270654,118680.0,118670.0,0.0852689]
[1754991605504,1.22270654,118680.0,118670.0,0.001]
[1754991605705,1.52664867,118680.0,118670.0,0.001]
[1754991607401,1.22270654,118680.0,118670.0,0.001]
[1754991608602,1.42536706,118680.0,118670.0,0.001]
[1754991609007,1.02009467,118680.0,118670.0,0.001]
[1754991609309,1.03359467,118680.0,118670.0,0.001]
[1754991609507,1.03359467,118680.0,118670.0,0.085269]
[1754991617113,1.05233838,118680.0,118670.0,0.085269]
[1754991617315,1.41313838,118680.0,118670.0,0.085269]
[1754991620717,1.41339816,118680.0,118670.0,0.085269]
[1754991621013,0.69179816,118680.0,118670.0,0.085269]
[1754991621213,1.42323816,118680.0,118670.0,0.085269]
[1754991622813,1.42323816,118680.0,118670.0,0.001]
[1754991623215,1.82851055,118680.0,118670.0,0.001]
[1754991627310,1.82851055,118680.0,118640.0,0.85883556]
[1754991627311,0.0842831,118650.0,118640.0,0.4087188]
[1754991627615,0.58672549,118650.0,118640.0,0.4561388]
[1754991627915,0.6297732,118650.0,118640.0,0.3718491]
[1754991628308,0.22450081,118650.0,118640.0,0.3718491]
[1754991628512,0.6297732,118650.0,118640.0,0.3718491]
[1754991629016,0.6297732,118650.0,118640.0,0.3738491]
[1754991629215,0.22450081,118650.0,118640.0,0.3738491]
[1754991629412,0.6297732,118650.0,118640.0,0.3738491]
[1754991629916,0.6307732,118650.0,118640.0,0.3768491]
[1754991630712,0.22550081,118650.0,118640.0,0.68086594]
[1754991630917,0.52951765,118650.0,118640.0,0.3768491]
[1754991631118,0.53151765,118650.0,118640.0,0.67686594]
[1754991631519,0.53151765,118650.0,118640.0,0.3728491]
[1754991631721,0.53151765,118650.0,118640.0,0.67686594]
[1754991632118,0.53051765,118650.0,118640.0,0.67786594]
[1754991632320,0.53051765,118650.0,118640.0,0.3738491]
[1754991632519,0.53051765,118650.0,118640.0,0.67786594]
[1754991632719,0.22650081,118650.0,118640.0,0.3738491]
[1754991633622,0.22450081,118650.0,118640.0,0.3728491]
[1754991633921,0.22550081,118650.0,118640.0,0.3738491]
[1754991634721,0.22550081,118650.0,118640.0,0.3728491]
[1754991634921,0.22550081,118650.0,118640.0,0.3738491]
[1754991635410,0.22450081,118650.0,118640.0,0.3728491]
[1754991635613,0.22650081,118650.0,118640.0,0.3738491]
[1754991637020,0.22550081,118650.0,118640.0,0.3738491]
[1754991638918,0.2065331,118650.0,118640.0,0.3738491]
[1754991641021,0.1107831,118650.0,118640.0,0.3738491]
[1754991641222,0.2065331,118650.0,118640.0,0.3738491]
[1754991642423,0.61184836,118650.0,118640.0,0.3738491]
[1754991642823,0.61184836,118650.0,118640.0,0.2711091]
[1754991643123,0.61184836,118650.0,118640.0,0.3277291]
[1754991643517,0.61184836,118650.0,118640.0,0.2711091]
[1754991643712,0.61184836,118650.0,118640.0,0.3738491]
[1754991644323,0.61184836,118650.0,118640.0,0.2895594]
[1754991644719,0.2065331,118650.0,118640.0,0.2895594]
[1754991644925,0.61184836,118650.0,118640.0,0.2895594]
[1754991646821,0.62028597,118650.0,118640.0,0.2895594]
[1754991647320,0.21497071,118650.0,118640.0,0.2895594]
[1754991647514,0.61184836,118650.0,118640.0,0.2895594]
[1754991648226,0.2065331,118650.0,118640.0,0.2895594]
[1754991648621,0.61184836,118650.0,118640.0,0.2895594]
[1754991649127,0.62021161,118650.0,118640.0,0.2895594]
[1754991650826,0.62021161,118650.0,118640.0,0.28960935]
[1754991651228,0.62021161,118650.0,118640.0,0.00204995]
[1754991651229,0.98101161,118650.0,118640.0,0.00204995]
[1754991653439,1.12101161,118650.0,118640.0,0.00204995]
[1754991654740,1.01975136,118650.0,118640.0,0.00204995]
[1754991656244,1.01975136,118650.0,118640.0,0.08634015]
[1754991656743,1.01975136,118650.0,118640.0,0.00204995]
[1754991658337,0.71569635,118650.0,118640.0,0.00204995]
[1754991658540,1.01975136,118650.0,118640.0,0.00204995]
[1754991658735,1.32380637,118650.0,118640.0,0.00204995]
[1754991659846,1.32380637,118650.0,118640.0,0.08634015]
[1754991660239,1.32380637,118650.0,118640.0,0.00204995]
[1754991660635,1.32380637,118650.0,118640.0,0.08634015]
[1754991661045,1.45242137,118650.0,118640.0,0.08634015]
[1754991662942,1.14836636,118650.0,118640.0,0.15957015]
[1754991663141,1.14836636,118650.0,118640.0,0.18139015]
[1754991664948,1.14836636,118650.0,118640.0,0.10277015]
[1754991666852,0.84431135,118650.0,118640.0,0.10816015]
[1754991667047,1.14836636,118650.0,118640.0,0.18139015]
[1754991668246,1.14836636,118650.0,118640.0,0.08634015]
[1754991668847,1.14836636,118650.0,118640.0,0.11883015]
[1754991669445,1.14836636,118650.0,118640.0,0.15957015]
[1754991670153,1.14836636,118650.0,118640.0,0.07527995]
[1754991671853,1.14836636,118650.0,118640.0,0.04278995]
[1754991672055,1.14836636,118650.0,118640.0,0.01847995]
[1754991672458,1.14836636,118650.0,118640.0,0.00204995]
[1754991673853,1.14836636,118650.0,118640.0,0.08634035]
[1754991677358,0.84431135,118650.0,118640.0,0.08634035]
[1754991677658,1.14836636,118650.0,118640.0,0.08634035]
[1754991681764,0.84431135,118650.0,118640.0,0.08634035]
[1754991682063,1.14936636,118650.0,118640.0,0.08534035]
[1754991683662,1.14836636,118650.0,118640.0,0.08534035]
[1754991683871,1.14936636,118650.0,118640.0,0.08534035]
[1754991684170,1.16802041,118650.0,118640.0,0.08534035]
[1754991686371,1.16802041,118650.0,118640.0,0.19094035]
[1754991687271,1.16802041,118650.0,118640.0,0.16598035]
[1754991687466,1.16802041,118650.0,118640.0,0.12240035]
[1754991687667,1.16803093,118650.0,118640.0,0.08534035]
[1754991687966,1.15966768,118650.0,118640.0,0.38939536]
[1754991688172,0.35481267,118650.0,118640.0,0.79905037]
[1754991688369,0.35481267,118650.0,118640.0,0.81350037]
[1754991689269,0.65886768,118650.0,118640.0,0.81350037]
[1754991689469,0.65886768,118650.0,118640.0,0.50944536]
[1754991689881,0.65886768,118650.0,118640.0,0.51770621]
[1754991698384,0.53761768,118650.0,118640.0,0.39765621]
[1754991698679,0.0842902,118640.0,118630.0,0.2658897]
[1754991698884,0.80981022,118640.0,118630.0,0.2658897]
[1754991699189,1.17061022,118640.0,118630.0,0.2658897]
[1754991700182,1.17061022,118640.0,118630.0,0.1815938]
[1754991700378,1.29922522,118640.0,118630.0,0.1815938]
[1754991700781,1.30022522,118640.0,118630.0,0.01401]
[1754991700991,1.30022522,118640.0,118630.0,0.01501]
[1754991701791,1.29922522,118640.0,118630.0,0.01401]
[1754991702081,1.30222522,118640.0,118630.0,0.01401]
[1754991702484,1.60628023,118640.0,118630.0,0.01401]
[1754991702686,1.74628023,118640.0,118630.0,0.01401]
[1754991703390,0.8341152,118640.0,118630.0,0.01401]
[1754991703590,1.74628023,118640.0,118630.0,0.01401]
[1754991703790,1.44222522,118640.0,118630.0,0.01401]
[1754991704794,1.23962833,118640.0,118630.0,0.0983073]
[1754991705287,0.8341152,118640.0,118630.0,0.0983073]
[1754991705490,1.23962833,118640.0,118630.0,0.0983073]
[1754991705691,1.23962833,118640.0,118630.0,0.1477173]
[1754991706087,1.23962833,118640.0,118630.0,0.0983073]
[1754991706594,1.23962833,118640.0,118630.0,0.0983076]
[1754991707092,1.23962833,118640.0,118630.0,0.01401]
[1754991707289,1.23962833,118640.0,118630.0,0.0983074]
[1754991708486,1.09962833,118640.0,118630.0,0.0983074]
[1754991708689,0.6941152,118640.0,118630.0,0.0983074]
[1754991708995,0.6941152,118640.0,118630.0,0.1706574]
[1754991709190,0.73882833,118640.0,118630.0,0.1706574]
[1754991709393,0.6941152,118640.0,118630.0,0.1706574]
[1754991709589,1.09962833,118640.0,118630.0,0.1706574]
[1754991712106,1.09962833,118640.0,118630.0,0.1929074]
[1754991712403,0.73882833,118640.0,118630.0,0.2175474]
[1754991712800,1.09962833,118640.0,118630.0,0.2175474]
[1754991713304,1.09962833,118640.0,118630.0,0.2028774]
[1754991713601,0.6941152,118640.0,118630.0,0.2028774]
[1754991713901,1.09962833,118640.0,118630.0,0.2028774]
[1754991714101,1.09962833,118640.0,118630.0,0.1929074]
[1754991715594,0.3333152,118640.0,118630.0,0.62392053]
[1754991716008,0.179175,118640.0,118630.0,0.98472053]
[1754991717006,0.251225,118640.0,118630.0,0.98472053]
[1754991719603,0.131615,118640.0,118630.0,0.98472053]
[1754991723610,0.131615,118640.0,118630.0,0.5792074]
[1754991723817,0.131615,118640.0,118630.0,0.98472053]
[1754991726813,0.131615,118640.0,118630.0,1.15330453]
[1754991728110,0.131615,118640.0,118630.0,1.09924453]
[1754991728411,0.131615,118640.0,118630.0,1.13105453]
[1754991731620,0.131615,118640.0,118630.0,0.96247053]
[1754991731918,0.131615,118640.0,118630.0,0.98472053]
[1754991737424,0.203815,118640.0,118630.0,0.98472053]
[1754991737729,0.251685,118640.0,118630.0,0.98472053]
[1754991741233,0.179635,118640.0,118630.0,0.98472053]
[1754991741427,0.140935,118640.0,118630.0,0.88926053]
[1754991741626,0.249065,118640.0,118630.0,0.98275053]
[1754991745040,0.140655,118640.0,118630.0,0.98275053]
[1754991750741,0.140655,118640.0,118630.0,1.18512664]
[1754991751132,0.140655,118640.0,118630.0,0.5772374]
[1754991751444,0.249065,118640.0,118630.0,0.88118202]
[1754991751643,0.249065,118640.0,118630.0,1.18512664]
[1754991753942,0.178715,118640.0,118630.0,1.18512664]
[1754991755539,0.249065,118640.0,118630.0,1.18512664]
[1754991759441,0.249065,118640.0,118630.0,0.86679202]
[1754991759637,0.249065,118640.0,118630.0,0.88118202]
[1754991760544,0.63730002,118640.0,118630.0,0.88118202]
[1754991760737,0.94124464,118640.0,118630.0,0.4591074]
[1754991761742,1.30204464,118640.0,118630.0,0.0983074]
[1754991762639,1.09961861,118640.0,118630.0,0.0983074]
[1754991763539,1.09861861,118640.0,118630.0,0.0983074]
[1754991764146,0.6921554,118640.0,118630.0,0.0983074]
[1754991764343,1.09761861,118640.0,118630.0,0.0983074]
[1754991764845,1.09861861,118640.0,118630.0,0.0983074]
[1754991765148,1.09961861,118640.0,118630.0,0.0983074]
[1754991773554,1.23961861,118640.0,118630.0,0.0983074]
[1754991776059,1.23961861,118640.0,118630.0,0.01401]
[1754991776354,1.23961861,118640.0,118630.0,0.0983074]
[1754991778858,1.23961861,118640.0,118630.0,0.0983075]
[1754991779049,1.23961861,118640.0,118630.0,0.01401]
[1754991779655,1.23961861,118640.0,118630.0,0.0983075]
[1754991780756,0.8341554,118640.0,118630.0,0.0983075]
[1754991780959,1.23961861,118640.0,118630.0,0.0983075]
[1754991782667,1.44235498,118640.0,118630.0,0.0983075]
[1754991783263,1.13825519,118640.0,118630.0,0.48829729]
[1754991783463,1.13825519,118640.0,118630.0,0.52000729]
[1754991783664,0.99825519,118640.0,118630.0,0.52000729]
[1754991784462,0.63745519,118640.0,118630.0,0.52000729]
[1754991784654,0.3333554,118640.0,118630.0,0.52000729]
[1754991784855,0.63745519,118640.0,118630.0,0.52000729]
[1754991788664,0.94155498,118640.0,118630.0,0.2159075]
[1754991789366,0.94155498,118640.0,118630.0,0.2010575]
[1754991789567,0.94155498,118640.0,118630.0,0.1358075]
[1754991789768,0.94155498,118640.0,118630.0,0.1133975]
[1754991790765,0.94155498,118640.0,118630.0,0.0983075]
[1754991792869,0.94155498,118640.0,118630.0,0.01401]
[1754991793063,0.94155498,118640.0,118630.0,0.0983073]
[1754991794869,1.30235498,118640.0,118630.0,0.01401]
[1754991795059,1.60645477,118640.0,118630.0,0.01401]
[1754991796363,1.30235498,118640.0,118630.0,0.01401]
[1754991798674,1.50524126,118640.0,118630.0,0.01401]
[1754991799472,0.6941554,118640.0,118630.0,0.01401]
[1754991799672,1.09969833,118640.0,118630.0,0.01401]
[1754991803977,1.23969833,118640.0,118630.0,0.01401]
[1754991808378,1.64524126,118640.0,118630.0,0.01401]
[1754991816281,0.8341554,118640.0,118630.0,0.01401]
[1754991816485,1.64524126,118640.0,118630.0,0.01401]
[1754991818677,1.74662097,118640.0,118630.0,0.01401]
[1754991821779,1.44246578,118640.0,118630.0,0.01401]
[1754991824085,1.44246578,118640.0,118630.0,0.0983073]
[1754991826696,1.44246578,118640.0,118630.0,0.01401]
[1754991827295,1.74662097,118640.0,118630.0,0.01401]
[1754991832590,0.0843115,118610.0,118600.0,0.7677226]
[1754991832785,0.50486669,118610.0,118600.0,0.6922156]
[1754991832991,0.50486669,118610.0,118600.0,0.7298456]
[1754991833290,0.51340426,118610.0,118600.0,0.7298456]
[1754991833594,0.50486669,118610.0,118600.0,0.7298456]
[1754991833796,0.50486669,118610.0,118600.0,0.7318456]
[1754991833999,0.50586669,118610.0,118600.0,0.3740456]
[1754991835495,0.63448169,118610.0,118600.0,0.3740456]
[1754991836097,0.70175427,118610.0,118600.0,0.3740456]
[1754991841699,0.70175427,118610.0,118600.0,0.67820079]
[1754991843900,0.28119908,118610.0,118600.0,0.98235598]
[1754991844099,0.19688758,118610.0,118600.0,0.98235598]
[1754991844300,0.19688758,118610.0,118600.0,1.34315598]
[1754991848004,0.28119908,118610.0,118600.0,0.7348456]
[1754991848204,0.28119908,118610.0,118600.0,1.34315598]
[1754991854312,0.28119908,118610.0,118600.0,0.7348456]
[1754991854507,0.28119908,118610.0,118600.0,1.34315598]
[1754991855012,0.28119908,118610.0,118600.0,0.7348456]
[1754991855214,0.28119908,118610.0,118600.0,1.34315598]
[1754991856812,0.29066908,118610.0,118600.0,1.34315598]
[1754991857115,0.29066908,118610.0,118600.0,0.7348456]
[1754991857314,0.66480427,118610.0,118600.0,1.34315598]
[1754991858013,0.36064908,118610.0,118600.0,1.34315598]
[1754991858216,0.66480427,118610.0,118600.0,1.34315598]